{"text_format":"1","workbook":"xlsx","n_sheets":3,"sheets":["Лист1","Лист3","Лист2"],"not_rendered":{"charts":0,"images":0,"macros":0,"external_links":0,"defined_names":0,"comments":0,"pivot_tables":0},"unopened":[],"bounds":{"document_bytes":16777216,"sheet_cells":100000,"rows_first":2000,"rows_last":500,"rows_between":2000,"halvings":0,"cell_chars":16384,"cell_head_chars":4096},"cells_cut":0,"cells_raw":0,"read":"whole","date_system":"1900"}

{"sheet":"Лист1","index":0,"n_rows":132,"n_cols":12,"rows_kept":132,"cut":false,"hidden":false,"merged":[[1,7,1,8],[1,6,2,6],[1,4,2,4],[1,3,2,3],[1,2,2,2],[47,2,49,2],[66,2,67,2],[100,9,101,9],[50,2,51,2],[68,9,73,9],[77,5,78,5],[74,6,75,6],[77,9,78,9],[94,9,95,9],[99,3,99,6],[94,4,95,4],[94,5,95,5],[94,6,95,6],[94,7,95,7],[77,6,78,6],[77,7,78,7],[4,3,6,3],[46,3,46,6],[41,3,42,3],[41,2,42,2],[41,4,42,4],[25,2,26,2],[41,5,42,5],[1,1,2,1],[50,1,51,1],[50,0,51,0],[41,0,42,0],[66,0,67,0],[66,1,67,1],[74,4,75,4],[66,3,67,3],[41,6,42,6],[41,7,42,7],[66,6,67,6],[66,4,67,4],[41,8,42,8],[25,9,26,9],[47,9,49,9],[0,0,0,9],[63,0,65,9],[50,8,51,8],[25,8,26,8],[25,4,26,4],[25,5,26,5],[25,6,26,6],[25,7,26,7],[4,9,6,9],[47,7,49,7],[3,3,3,6],[24,3,24,6],[1,0,2,0],[131,0,133,9],[104,4,104,6],[47,8,49,8],[50,4,51,4],[50,5,51,5],[50,6,51,6],[50,7,51,7],[108,0,108,5],[47,6,49,6],[74,7,75,7],[74,9,76,9],[47,3,49,3],[47,4,49,4],[47,5,49,5],[66,7,66,8],[77,4,78,4]]}
["Техническое задание на устройство инженерных систем    "]
[null,"наименование работ",null,"наименование материаллов, модель","кол","ед.","стоим","сумма",null,"общая "]
[null,null,null,null,null,"измер.",null,"работ","матер-ов","стоимость"]
[null,null,null,"Водоснабжение"]
[null,"разводка гхвс, подвод к",null,null,null,null,null,null,null,153040]
[null,"потребителю",null,null,14,"выходов",2000,28000]
[]
[null,null,null,"Кран шаровой ф-1/2",null,"шт",0,null,0,null,null,{"$f":"SUM(I8:K8)","v":0}]
[null,null,null,"кран американка 3/4 бугати",6,"шт",670,null,{"$f":"PRODUCT(E9,G9)","v":4020}]
[null,null,null,"Трубы г хвс ф-16 рехау",150,"п.м",120,null,18000]
[null,null,null," установочный угол ф-16х1\\2",14,"шт",560,null,7840]
[null,null,null," калектор ГХВС 14выходов",1,"ком.",11900,null,11900]
[null,null,null," евроконус рехау ф-3\\4х16",14,"шт",385,null,5390]
[null,null,null," надвижные гильзы ф-16",14,"шт",50,null,700]
[null,null,null," калекторные шкафы шрн-2",1,"шт",2350,null,2350]
[null,null,null,"бойлер косвен.нагрева 160л",1,"шт",35000,null,35000]
[null,null,null,"фильтр очистки",1,"шт",2700,null,2700]
[null,null,null,"элимент очистки",1,"шт",700,null,700]
[null," ",null,"футорки ф-25х3/4 бронза",2,"шт",160,null,320]
[null," уст-шкафа с под-й калекторов",null,null,1,"шт",8000,8000,0]
[null,null,null,"американки ф-1днх25ппр",6,"шт",320,null,1920]
[null,null,null,"труба ф-25 арми-ая",20,"пм",110,null,2200]
[null,null,null,"фитенги ф-25",50,"шт",40,null,2000]
[null,"обвязка бойлера кос-го нагрева",null," ",1,"шт",22000,22000,0]
[null,null,null,"Канализация"]
[null,"Подводка быт. канализации",null,null,6,"точек",3500,{"$f":"PRODUCT(E26,G26)","v":21000},null,{"$f":"SUM(H26:I46)","v":31830}]
[null,"к потребителю"]
[null,null,null," ",null,"шт",null,null,{"$f":"PRODUCT(E28,G28)","v":0}]
[null,null,null,"канализационные трубы  d110",8,"п.м",180,null,{"$f":"PRODUCT(E29,G29)","v":1440}]
[null,null,null,"канализационные трубы  d50",18,"п.м",120,null,2160]
[null,null,null,"тройники ф110",4,"шт",170,null,680]
[null,null,null,"тройники ф110-ф50 косой",4,"шт",120,null,480]
[null,null,null,"тройники ф50 ",8,"шт",70,null,560]
[null,null,null,"отводы ф110 поворот 45 гр",12,"шт",85,null,1020]
[null,null,null,"отводы ф50 поворот 45 гр",18,"шт",55,null,990]
[null,null,null,"рюмка ф110-ф50",2,"шт",160,null,320]
[null,null,null,"аэраторы ф50",3,"шт",250,null,750]
[null,null,null,"кронштейны ф110",null,"шт",null,null,0]
[null,null,null,"крепежная лента",1,"рул",600,null,600]
[null,null,null," клипсы ф-110",10,"шт",12,null,120]
[null,null,null," клипсы ф-50",10,"шт",7,null,70]
[null,"траншея 1,8 м глубина ",null,null,null,"п.м",null,{"$f":"PRODUCT(E42,G42)","v":0}]
[null,"0.5 м ширина."]
[null,null,null,"канализационные трубы Poliplast d32",8,"пм",110,null,{"$f":"PRODUCT(E44,G44)","v":880}]
[null,null,null,"переход ф50х32",2,"шт",80,null,{"$f":"PRODUCT(E45,G45)","v":160}]
[null,null,null,"отвод ф32",12,"шт",50,null,600]
[null,null,null,"Отопление"]
[null,"установка и обвязка котла",null,null,1,"шт",20000,{"$f":"PRODUCT(E48,G48)","v":20000},null,109750]
[null,"ото-ия с турбо-дымоходом"]
[]
[null,null,null,"котел отопления одноконтурный ",1,"шт",40000,null,{"$f":"PRODUCT(E51,G51)","v":40000}]
[null,null,null," 24квт"]
[null,null,null,"тройники-ф-3/4-1/2-3/4",8,"шт",285,null,{"$f":"PRODUCT(E53,G53)","v":2280}]
[null,null,null," мпк ф-3\\4 х 25",18,"шт",160,null,{"$f":"PRODUCT(E54,G54)","v":2880}]
[null,null,null,"циркуляционный  Grundfoss 25/60",3,"шт",6950,null,20850]
[null,null,null,"фильтр грубой очистки ф-40",1,"шт",1200,null,1200]
[null,null,null,"нипель ф1дх3/4",6,"шт",160,null,960]
[null,null,null,"краны шаровый ф 3/4 \"американка\"",14,"шт",670,null,9380]
[null,null,null,"расширительный бак 24 литра гвс",1,"шт",3850,null,3850]
[null,null,null,"кронштейн для расширительного бачка",1,"шт",950,null,950]
[null,null,null,"группа защиты котла",0,"шт",0,null,0]
[null,null,null,"кран подпитки котла",4,"шт",380,null,1520]
[null,null,null,"термомонометры задней под-ки",6,"шт",980,null,5880]
["ЗАКАЗЧИК _________________      Страница 1 из 2          ПОДРЯДЧИК _________________"]
[]
[]
[null,"наименование работ",null,"наименование материаллов, модель","кол","ед.","стоим","сумма",null,"общая "]
[null,null,null,null,null,"измер.",null,"работ","матер-ов","стоимость"]
[null,null,null,"калектор основного подмеса 3х кон.",2,"шт",4500,null,{"$f":"PRODUCT(E69,G69)","v":9000},347731]
[null,"уст-ка основного калектора",null," ",2,"шт",1500,3000,0]
[null,"сборка насосных групп",null," ",3,"шт",7000,21000,0]
[null,null,null,"мультифлекс угловой",17,"шт",950,null,{"$f":"PRODUCT(E72,G72)","v":16150}]
[null,null,null,"калектор ото-я 9 выходов 1го этажа",1,"ком.",7335,null,7335]
[null,null,null,"калектор ото-я 8 выходов 2го этажа",1,"ком.",6520,null,6520]
[null,"закачка жидкости и",null,null,null,"кон",null,{"$f":"PRODUCT(E75,G75)","v":0}]
[null," опресовка системы"]
[null,null,null,"жидкость незамерзающая -30",0,"литров",null,null,{"$f":"PRODUCT(E77,G77)","v":0}]
[null,"разводка труб отопления",null,null,17,"точек",3500,{"$f":"PRODUCT(E78,G78)","v":59500}]
[null," до радиаторов"]
[null,null,null,"евроконус ф-16 х 3\\4 рехау",68,"шт",387,null,{"$f":"PRODUCT(E80,G80)","v":26316}]
[null,null,null,"   американки ф-1дн х 32ппр",4,"шт",420,null,{"$f":"PRODUCT(E81,G81)","v":1680}]
[null,null,null,"трубы рехау  ф-16",300,"п.м",87,null,26100]
[null,null,null,"напровляющий отвод рехау ф-16",68,"шт",175,null,11900]
[null,null,null,"мпк ф-1дн х 32ппр",8,"шт",180,null,1440]
[null,null,null,"трубы арми-ые ф-32",30,"п.м",128,null,3840]
[null,null,null,"футорки ф-25х3/4 бронза",6,"шт",170,null,1020]
[null,null,null," калекторные шкафы шрн-3",2,"шт",2800,null,5600]
[null,null,null,"нипель ф-3/4",6,"шт",80,null,480]
[null,null,null,"фитинги ф-32",50,"шт",50,null,2500]
[null,null,null,"терморегулятор на радиаторы",17,"шт",750,null,12750]
[null,null,null," ",0,"шт",0,null,0]
[null,null,null," ",0,"шт",0,null,0]
[null,null,null," ",0,"шт",0,null,0]
[null,null,null," ",0,"шт",0,null,0]
[null,"установка и подключение",null,null,17,"точек",1000,{"$f":"PRODUCT(E95,G95)","v":17000}]
[null,"радиаторов отопления"]
[null,null,null,"радиаторы керми нижней пдводки-",0,"шт",0,null,{"$f":"PRODUCT(E97,G97)","v":0}]
[null,null,null,"из расчота 180кв.м",17,"шт",5800,null,{"$f":"PRODUCT(E98,G98)","v":98600}]
[null,"уст-ка шкафов.и их обвязка",null,null,2,"шт",8000,null,16000]
[null,null,null,"Расходные материалы"]
[null,null,null,"расходные материалы",null,null,null,null,5000,{"$f":"SUM(H101:I103)","v":10000}]
[null,null,null,"доставка",null,null,null,null,5000]
[null,"8 926 853 88 22 ",null,"Дмитрий",null,null,null,null,{"$f":"PRODUCT(E103,G103)","v":0}]
[]
[null," ",null,null,"итого",null,null,{"$f":"SUM(H101:H103,H69:H99,H48:H63,H26:H46,H5:H24)","v":199500},{"$f":"SUM(I101:I103,I69:I99,I48:I63,I26:I46,I5:I24)","v":452851},{"$f":"SUM(J101:J103,J69:J99,J48:J63,J26:J46,J5:J24)","v":652351}]
[]
[]
[]
["ЗАКАЗЧИК С КОМПЛЕКТАЦИЕЙ СОГЛАСЕН _____________________________________"]
[]
[]
[]
[null,null,null,null,null,null,null,null,null,null,"   "]
[]
[]
[]
[]
[]
[]
[]
[]
[]
[]
[]
[]
[]
[]
[]
[]
[]
[]
["ЗАКАЗЧИК _________________      Страница 2 из 2          ПОДРЯДЧИК _________________"]

{"sheet":"Лист3","index":1,"n_rows":0,"n_cols":0,"rows_kept":0,"cut":false,"hidden":false,"merged":[]}

{"sheet":"Лист2","index":2,"n_rows":0,"n_cols":0,"rows_kept":0,"cut":false,"hidden":false,"merged":[]}